Workbook

Sheet DATA SISWA
A1: PROFIL SEKOLAH | J1: made by Chusni Kurniawan
B2: NAMA SATUAN PENDIDIKAN | D2: : | E2: MI NURUL ISLAM LABRUK KIDUL | J2: (c.kurniawan@ymail.com)
B3: KEPALA MADRASAH | D3: : | E3: SAHRONI,S.Pd.I
B4: KELAS | D4: : | E4: IV (EMPAT) A | L4: =B4&" "&E4 -> KELAS IV (EMPAT) A
B5: WALI KELAS | D5: : | E5: CHUSNI KURNIAWAN,S.Pd. | L5: =B5&" "&E4 -> WALI KELAS IV (EMPAT) A
B6: SEMESTER | D6: : | E6: I (GANJIL) | K6: =B6&" "&E6 -> SEMESTER I (GANJIL) | L6: =E8&" "&E6 -> UJIAN TENGAH SEMESTER I (GANJIL) | M6: I (SATU) A | N6: UJIAN SEMESTER | O6: 2014/2015 | P6: I (GANJIL)
B7: TAHUN PELAJARAN | D7: : | E7: 2017/2018 | L7: =B7&" "&E7 -> TAHUN PELAJARAN 2017/2018 | M7: I (SATU) B | N7: UJIAN TENGAH SEMESTER | O7: 2015/2016 | P7: II (GENAP)
B8: JUDUL RAPORT | D8: : | E8: UJIAN TENGAH SEMESTER | M8: II (DUA) A | O8: 2016/2017
B9: Tempat&Tgl PENERIMAAN RAPOR | D9: : | E9: Labruk kidul, 31 Oktober 2017 | M9: II (DUA) B | O9: 2017/2018
M10: III (TIGA) A | O10: 2018/2019
A11: NO | B11: NISN | C11: NO.INDUK | D11: NAMA SISWA | E11: NAMA PANGGILAN | F11: TEMPAT LAHIR | G11: TANGGAL LAHIR | H11: NAMA ORTU | I11: PESAN WALI KELAS TERHADAP NILAI (BARIS 1) | J11: PESAN WALI KELAS TERHADAP NILAI (BARIS 2) | K11: rank | M11: III (TIGA) B | O11: 2019/2020
A12: 1 | B12: 2 | C12: 3 | D12: 4 | E12: 5 | F12: 6 | G12: 7 | H12: 8 | I12: 9 | J12: 10 | K12: 11 | L12: 12 | M12: IV (EMPAT) A
A13: 1 | B13: 0078140536 | C13: 4331 | D13: ACHMAD FATHIR IZUDDIN | E13: FATHIR | F13: Lumajang | G13: 2007-11-09 | H13: NURUDDIN | I13: =IF(K13>20,"Jangan malas belajar, lebih giat dalam belajar!",IF(K13>10,"Pacu Semangat Belajarmu,& Tingkatkan nilaimu!",IF(K13>1,"Pertahankan Nilaimu, jangan lengah belajar!","Jangan Lengah, terus semangat belajar"))) -> Pacu Semangat Belajarmu,& Tingkatkan nilaimu! | J13: - | K13: =VALUE('REKAP NILAI'!AB7) -> 14 | L13: =F13&", "&TEXT(G13,"dd mmmm yyyy") -> Lumajang, 09 November 2007 | M13: IV (EMPAT) B
A14: 2 | B14: 0075656390 | C14: 4361 | D14: ACHMAD SEPTIAN HAMDANI | E14: DANI | F14: LUMAJANG | G14: 2007-09-10 | H14: SYAIFUL ARIS | I14: =IF(K14>20,"Jangan malas belajar, lebih giat dalam belajar!",IF(K14>10,"Pacu Semangat Belajarmu,& Tingkatkan nilaimu!",IF(K14>1,"Pertahankan Nilaimu, jangan lengah belajar!","Jangan Lengah, terus semangat belajar"))) -> Pacu Semangat Belajarmu,& Tingkatkan nilaimu! | J14: - | K14: =VALUE('REKAP NILAI'!AB8) -> 13 | L14: =F14&", "&TEXT(G14,"dd mmmm yyyy") -> LUMAJANG, 10 September 2007 | M14: V (LIMA) A
A15: 3 | B15: 0071796138 | C15: 4362 | D15: ACHMAD SULAIMAN | E15: SULAIMAN | F15: LUMAJANG | G15: 2007-07-26 | H15: AGUS SULAIMAN | I15: Jangan malas belajar, lebih giat dalam belajar! | J15: - | K15: =VALUE('REKAP NILAI'!AB9) -> 32 | L15: LUMAJANG, 26 Juli 2007 | M15: V (LIMA) B
A16: 4 | B16: 0084691896 | C16: 4333 | D16: AININ NAFISA FEBRIYANTI | E16: AININ | F16: Lumajang | G16: 2008-02-12 | H16: SUBOWO | I16: Pertahankan Nilaimu, jangan lengah belajar! | J16: - | K16: =VALUE('REKAP NILAI'!AB10) -> 9 | L16: Lumajang, 12 Februari 2008 | M16: VI (ENAM) A
A17: 5 | B17: 0075488897 | C17: 4334 | D17: AISYAH DWI ANDINI | E17: AISYAH | F17: Lumajang | G17: 2007-09-30 | H17: SAIFUL ANAM | I17: Pertahankan Nilaimu, jangan lengah belajar! | J17: - | K17: =VALUE('REKAP NILAI'!AB11) -> 6 | L17: Lumajang, 30 September 2007 | M17: VI (ENAM) B
A18: 6 | C18: 4335 | D18: AJENG AGUSTINA KIRANA PUTRI | E18: AJENG | F18: HANAU | G18: 2007-07-31 | H18: SUKIRNO | I18: Pertahankan Nilaimu, jangan lengah belajar! | J18: - | K18: =VALUE('REKAP NILAI'!AB12) -> 4 | L18: HANAU, 31 Juli 2007
A19: 7 | B19: 0078831956 | C19: 4336 | D19: ALVIAN FAIZULHAQQI | E19: VIAN | F19: Lumajang | G19: 2007-05-20 | H19: MUKHAMAD FAUZI | I19: Jangan malas belajar, lebih giat dalam belajar! | J19: - | K19: =VALUE('REKAP NILAI'!AB13) -> 21 | L19: Lumajang, 20 Mei 2007
A20: 8 | B20: 0073667130 | C20: 4337 | D20: ANGGITA RIZKY YUGA MEISYA | E20: ANGGI | F20: Lumajang | G20: 2007-05-31 | H20: GALIH DWI APRIYANTO | I20: Pertahankan Nilaimu, jangan lengah belajar! | J20: - | K20: =VALUE('REKAP NILAI'!AB14) -> 2 | L20: Lumajang, 31 Mei 2007
A21: 9 | B21: 0089321127 | C21: 4365 | D21: AUFAN AZKAL ABRORI | E21: OVAN | F21: LUMAJANG | G21: 2008-05-16 | H21: AHMAD AJMAIN | I21: Jangan malas belajar, lebih giat dalam belajar! | J21: - | K21: =VALUE('REKAP NILAI'!AB15) -> 29 | L21: LUMAJANG, 16 Mei 2008
A22: 10 | B22: 0074492973 | C22: 4338 | D22: AURA SALSABILA WULAN SARI | E22: RARA | F22: Lumajang | G22: 2007-05-18 | H22: SAIFUL | I22: Pertahankan Nilaimu, jangan lengah belajar! | J22: - | K22: =VALUE('REKAP NILAI'!AB16) -> 3 | L22: Lumajang, 18 Mei 2007
A23: 11 | B23: 0071776593 | C23: 4465 | D23: AZZA PRISHAL DWI PUTRA | E23: AZZA | F23: LUMAJANG | G23: 2007-08-14 | H23: MOHAMMAD SHOLEH | I23: Jangan malas belajar, lebih giat dalam belajar! | J23: - | K23: =VALUE('REKAP NILAI'!AB17) -> 28 | L23: LUMAJANG, 14 Agustus 2007
A24: 12 | B24: 0078989673 | C24: 4366 | D24: BALQIS NAILA AUDIA | E24: BALQIS | F24: LUMAJANG | G24: 2007-10-16 | H24: SAMSUL HUDA | I24: Jangan Lengah, terus semangat belajar | J24: - | K24: =VALUE('REKAP NILAI'!AB18) -> 1 | L24: LUMAJANG, 16 Oktober 2007
A25: 13 | B25: 0078400392 | C25: 4367 | D25: BIMA SATRIA DIRGANTARA | E25: BIMA | F25: LUMAJANG | G25: 2007-10-18 | H25: JOKO SAMBANG | I25: Pacu Semangat Belajarmu,& Tingkatkan nilaimu! | J25: - | K25: =VALUE('REKAP NILAI'!AB19) -> 18 | L25: LUMAJANG, 18 Oktober 2007
A26: 14 | B26: 0086652599 | C26: 4339 | D26: DEVI KARUNIA RATNA PUTRI | E26: DEVI | F26: Lumajang | G26: 2008-01-28 | H26: MUKHAMMAD KHOZIN AS'ARI | I26: Pertahankan Nilaimu, jangan lengah belajar! | J26: - | K26: =VALUE('REKAP NILAI'!AB20) -> 4 | L26: Lumajang, 28 Januari 2008
A27: 15 | B27: 0089906682 | C27: 4340 | D27: DEVITA FEBRIANI PUTRI | E27: DEVITA | F27: Lumajang | G27: 2008-02-17 | H27: BINADI | I27: Pertahankan Nilaimu, jangan lengah belajar! | J27: - | K27: =VALUE('REKAP NILAI'!AB21) -> 7 | L27: Lumajang, 17 Februari 2008
A28: 16 | B28: 0074569410 | C28: 4368 | D28: EKA AULIYA` PUTRI | E28: EKA | F28: LUMAJANG | G28: 2007-12-07 | H28: BASHORI ALWI | I28: Pertahankan Nilaimu, jangan lengah belajar! | J28: - | K28: =VALUE('REKAP NILAI'!AB22) -> 10 | L28: LUMAJANG, 07 Desember 2007
A29: 17 | B29: 0083684457 | C29: 4341 | D29: ERSA PUSPITA EKA ROSA LINDA | E29: ERSA | F29: Lumajang | G29: 2008-03-01 | H29: SOLIKIN | I29: Pacu Semangat Belajarmu,& Tingkatkan nilaimu! | J29: - | K29: =VALUE('REKAP NILAI'!AB23) -> 16 | L29: Lumajang, 01 Maret 2008
A30: 18 | B30: 0078481731 | C30: 4369 | D30: FABIYAN TRI BAKTI OKTAFIAN | E30: FABIYAN | F30: LUMAJANG | G30: 2007-10-26 | H30: FADLOLI | I30: Jangan malas belajar, lebih giat dalam belajar! | J30: - | K30: =VALUE('REKAP NILAI'!AB24) -> 23 | L30: LUMAJANG, 26 Oktober 2007
A31: 19 | B31: 0074514146 | C31: 4370 | D31: FAKHIS GABRIL LIA | E31: FAKHIS | F31: LUMAJANG | G31: 2007-05-04 | H31: DONI HARIADI | I31: Pertahankan Nilaimu, jangan lengah belajar! | J31: - | K31: =VALUE('REKAP NILAI'!AB25) -> 8 | L31: LUMAJANG, 04 Mei 2007
A32: 20 | C32: 4343 | D32: FELISITA APRILIA NUR NIHAYA | E32: FELI | F32: Lumajang | G32: 2007-04-24 | H32: EDI SISWANTO | I32: Pacu Semangat Belajarmu,& Tingkatkan nilaimu! | J32: - | K32: =VALUE('REKAP NILAI'!AB26) -> 12 | L32: Lumajang, 24 April 2007
A33: 21 | C33: 4344 | D33: FIRDA DWI ANDRIANI | E33: FIRDA | F33: LUMAJANG | G33: 2007-11-23 | H33: MISNATUN | I33: Jangan malas belajar, lebih giat dalam belajar! | J33: - | K33: =VALUE('REKAP NILAI'!AB27) -> 26 | L33: LUMAJANG, 23 November 2007
A34: 22 | B34: 0073420487 | C34: 4345 | D34: GALANG MARDHOTILLAH SATOTO | E34: GALANG | F34: Lumajang | G34: 2007-07-12 | H34: AGUNG SUJUD SATOTO | I34: Pacu Semangat Belajarmu,& Tingkatkan nilaimu! | J34: - | K34: =VALUE('REKAP NILAI'!AB28) -> 19 | L34: Lumajang, 12 Juli 2007
A35: 23 | B35: 0079870082 | C35: 4371 | D35: GALIH FAREL PRASETYO | E35: GALIH | F35: LUMAJANG | G35: 2007-07-03 | H35: MUHAMMAD ARIFIN | I35: Pacu Semangat Belajarmu,& Tingkatkan nilaimu! | J35: - | K35: =VALUE('REKAP NILAI'!AB29) -> 14 | L35: LUMAJANG, 03 Juli 2007
A36: 24 | B36: 0087636520 | C36: 4372 | D36: GILANG AKBAR PRASETYO | E36: AKBAR | F36: LUMAJANG | G36: 2008-01-09 | H36: di akte tidak tercantum | I36: Jangan malas belajar, lebih giat dalam belajar! | J36: - | K36: =VALUE('REKAP NILAI'!AB30) -> 31 | L36: LUMAJANG, 09 Januari 2008
A37: 25 | B37: 0054680814 | C37: 4304 | D37: HADI GUNAWAN | E37: GUNAWAN | F37: LUMAJANG | G37: 2005-12-21 | H37: LULUT SUPENO | I37: Jangan malas belajar, lebih giat dalam belajar! | J37: - | K37: =VALUE('REKAP NILAI'!AB31) -> 33 | L37: LUMAJANG, 21 Desember 2005
A38: 26 | B38: 0073608418 | C38: 4346 | D38: IKA KURNIA WATI AGUSTINA | E38: SENA | F38: Lumajang | G38: 2007-08-19 | H38: SUPANDI ARIS SUMARGIONO | I38: Pacu Semangat Belajarmu,& Tingkatkan nilaimu! | J38: - | K38: =VALUE('REKAP NILAI'!AB32) -> 20 | L38: Lumajang, 19 Agustus 2007
A39: 27 | B39: 0073409469 | C39: 4374 | D39: IYAAD AFLAKHA RAMZII | E39: AFLAH | F39: LUMAJANG | G39: 2007-08-10 | H39: ATHO'ILLAH | I39: Pacu Semangat Belajarmu,& Tingkatkan nilaimu! | J39: - | K39: =VALUE('REKAP NILAI'!AB33) -> 17 | L39: LUMAJANG, 10 Agustus 2007
A40: 28 | B40: 0068258891 | C40: 4305 | D40: JULI ANDRIYANTO | E40: JULI | F40: LUMAJANG | G40: 2006-07-11 | H40: SIAMAN | I40: Jangan malas belajar, lebih giat dalam belajar! | J40: - | K40: =VALUE('REKAP NILAI'!AB34) -> 26 | L40: LUMAJANG, 11 Juli 2006
A41: 29 | C41: 4530 | D41: M. RIZKY RIDWAN | E41: RIZKI | F41: Lumajang | G41: 2007-11-25 | H41: ACHMAD SYAIKHU | I41: Jangan malas belajar, lebih giat dalam belajar! | J41: - | K41: =VALUE('REKAP NILAI'!AB35) -> 30 | L41: Lumajang, 25 November 2007
A42: 30 | B42: 0076361559 | C42: 4351 | D42: MOCHAMAD RAFLI DIAN SAPUTRA | E42: RAFLI | F42: Lumajang | G42: 2007-07-28 | H42: SAMSUL ARIFIN | I42: Jangan malas belajar, lebih giat dalam belajar! | J42: - | K42: =VALUE('REKAP NILAI'!AB36) -> 21 | L42: Lumajang, 28 Juli 2007
A43: 31 | B43: 0075055640 | C43: 4354 | D43: MUHAMMAD ALVIN RIDHO | E43: ALVIN | F43: Lumajang | G43: 2007-08-13 | H43: MACHMUD ALI RIDHO | I43: Pacu Semangat Belajarmu,& Tingkatkan nilaimu! | J43: - | K43: =VALUE('REKAP NILAI'!AB37) -> 11 | L43: Lumajang, 13 Agustus 2007
A44: 32 | B44: 0073137310 | C44: 4385 | D44: STANY RAFIDAH RAHMANIA | E44: STANI | F44: LUMAJANG | G44: 2007-07-26 | H44: SUNARIYADI | I44: Jangan malas belajar, lebih giat dalam belajar! | J44: - | K44: =VALUE('REKAP NILAI'!AB38) -> 25 | L44: LUMAJANG, 26 Juli 2007
A45: 33 | B45: 0077336427 | C45: 4387 | D45: USWATUN KHASANAH | E45: UUS | F45: LUMAJANG | G45: 2007-07-17 | H45: SATUKAN | I45: Jangan malas belajar, lebih giat dalam belajar! | J45: - | K45: =VALUE('REKAP NILAI'!AB39) -> 24 | L45: LUMAJANG, 17 Juli 2007
A46: 34 | I46: Jangan malas belajar, lebih giat dalam belajar! | J46: - | K46: =VALUE('REKAP NILAI'!AB40) -> 33 | L46: , 00 Januari 1900
A47: 35 | I47: Jangan malas belajar, lebih giat dalam belajar! | J47: - | K47: =VALUE('REKAP NILAI'!AB41) -> 33 | L47: , 00 Januari 1900
A48: 36 | I48: Jangan malas belajar, lebih giat dalam belajar! | J48: - | K48: =VALUE('REKAP NILAI'!AB42) -> 33 | L48: , 00 Januari 1900
A49: 37 | I49: Jangan malas belajar, lebih giat dalam belajar! | J49: - | K49: =VALUE('REKAP NILAI'!AB43) -> 33 | L49: , 00 Januari 1900
A50: 38 | I50: Jangan malas belajar, lebih giat dalam belajar! | J50: - | K50: =VALUE('REKAP NILAI'!AB44) -> 33 | L50: , 00 Januari 1900
A51: 39 | I51: Jangan malas belajar, lebih giat dalam belajar! | J51: - | K51: =VALUE('REKAP NILAI'!AB45) -> 33 | L51: , 00 Januari 1900
A52: 40 | I52: Jangan malas belajar, lebih giat dalam belajar! | J52: - | K52: =VALUE('REKAP NILAI'!AB46) -> 33 | L52: , 00 Januari 1900
A53: 41 | I53: Jangan malas belajar, lebih giat dalam belajar! | J53: - | K53: =VALUE('REKAP NILAI'!AB47) -> 33 | L53: , 00 Januari 1900
A54: 42 | I54: Jangan malas belajar, lebih giat dalam belajar! | J54: - | K54: =VALUE('REKAP NILAI'!AB48) -> 33 | L54: , 00 Januari 1900
A55: 43 | I55: Jangan malas belajar, lebih giat dalam belajar! | J55: - | K55: =VALUE('REKAP NILAI'!AB49) -> 33 | L55: , 00 Januari 1900
A56: 44 | I56: Jangan malas belajar, lebih giat dalam belajar! | J56: - | K56: =VALUE('REKAP NILAI'!AB50) -> 33 | L56: , 00 Januari 1900
A57: 45 | I57: Jangan malas belajar, lebih giat dalam belajar! | J57: - | K57: =VALUE('REKAP NILAI'!AB51) -> 33 | L57: , 00 Januari 1900
A58: 46 | I58: Jangan malas belajar, lebih giat dalam belajar! | J58: - | K58: =VALUE('REKAP NILAI'!AB52) -> 33 | L58: , 00 Januari 1900
A59: 47 | I59: Jangan malas belajar, lebih giat dalam belajar! | J59: - | K59: =VALUE('REKAP NILAI'!AB53) -> 33 | L59: , 00 Januari 1900
A60: 48 | I60: Jangan malas belajar, lebih giat dalam belajar! | J60: - | K60: =VALUE('REKAP NILAI'!AB54) -> 33 | L60: , 00 Januari 1900
A61: 49 | I61: Jangan malas belajar, lebih giat dalam belajar! | J61: - | K61: =VALUE('REKAP NILAI'!AB55) -> 33 | L61: , 00 Januari 1900
A62: 50 | I62: Jangan malas belajar, lebih giat dalam belajar! | J62: - | K62: =VALUE('REKAP NILAI'!AB56) -> 33 | L62: , 00 Januari 1900
A63: 51 | I63: Jangan malas belajar, lebih giat dalam belajar! | J63: - | K63: =VALUE('REKAP NILAI'!AB57) -> 33 | L63: , 00 Januari 1900
A64: 52 | I64: Jangan Lengah, terus semangat belajar | J64: -
A65: 53 | I65: Jangan Lengah, terus semangat belajar | J65: -
A66: 54 | I66: Jangan Lengah, terus semangat belajar | J66: -
A67: 55 | I67: Jangan Lengah, terus semangat belajar | J67: -
A68: 56 | I68: Jangan Lengah, terus semangat belajar | J68: -
A69: 57 | I69: Jangan Lengah, terus semangat belajar | J69: -
A70: 58 | I70: Jangan Lengah, terus semangat belajar | J70: -
A71: 59 | I71: Jangan Lengah, terus semangat belajar | J71: -
A72: 60 | I72: Jangan Lengah, terus semangat belajar | J72: -

Sheet KKM
A2: Pendidikan Agama
A3: a | B3: Alquran Hadits | C3: = | D3: 70
A4: b | B4: Aqidah Akhlak | C4: = | D4: 70
A5: c | B5: Fiqih | C5: = | D5: 70
A6: d | B6: Sejarah Kebudayaan Islam | C6: = | D6: 70
A7: PPKn | C7: = | D7: 70
A8: B.Indonesia | C8: = | D8: 70
A9: B. Arab | C9: = | D9: 70
A10: Matematika | C10: = | D10: 70
A11: IPA | C11: = | D11: 70
A12: IPS | C12: = | D12: 70
A13: Kertakes | C13: = | D13: 75
A14: Penjaskes | C14: = | D14: 75
A15: Muatan Lokal :
A16: a | B16: B. Daerah | C16: = | D16: 70
A17: b | B17: B. Inggris | C17: = | D17: 65
A18: c | B18: Aswaja | C18: = | D18: 70
A19: d | B19: Nahwu-Shorof | C19: = | D19: 70
A21: Ektrakurikuler
A22: a. | B22: TIK | C22: =
A23: b. | B23: Ulangan | C23: =
A24: c. | C24: =
A25: d. | C25: =

Sheet REKAP NILAI
A1: ='DATA SISWA'!L6 -> UJIAN TENGAH SEMESTER I (GANJIL)
A2: ='DATA SISWA'!L7 -> TAHUN PELAJARAN 2017/2018
A3: NAMA MADRASAH | C3: : | D3: ='DATA SISWA'!E2 -> MI NURUL ISLAM LABRUK KIDUL | P3: ='DATA SISWA'!L4 -> KELAS IV (EMPAT) A | AD3: TEMPAT LAHIR | AE3: TANGGAL LAHIR | AF3: ORANG TUA | AG3: NO. INDUK
A4: 1 | B4: 2 | C4: 3 | D4: 4 | E4: 5 | F4: 6 | G4: 7 | H4: 8 | I4: 9 | J4: 10 | K4: 11 | L4: 12 | M4: 13 | N4: 14 | O4: 15 | P4: 16 | Q4: 17 | R4: 18 | S4: 19 | T4: 20 | U4: 21 | V4: 22 | W4: 23 | X4: 24 | AB4: 25
A5: No. Absen | B5: Nama Siswa | C5: =KKM!B3 -> Alquran Hadits | D5: =KKM!B4 -> Aqidah Akhlak | E5: =KKM!B5 -> Fiqih | F5: =KKM!B6 -> Sejarah Kebudayaan Islam | G5: =KKM!A7 -> PPKn | H5: =KKM!A8 -> B.Indonesia | I5: =KKM!A9 -> B. Arab | J5: =KKM!A10 -> Matematika | K5: =KKM!A11 -> IPA | L5: =KKM!A12 -> IPS | M5: =KKM!A13 -> Kertakes | N5: =KKM!A14 -> Penjaskes | O5: =KKM!B16 -> B. Daerah | P5: =KKM!B17 -> B. Inggris | Q5: =KKM!B18 -> Aswaja | R5: =KKM!B19 -> Nahwu-Shorof | S5: =KKM!B22 -> TIK | T5: =KKM!B23 -> Ulangan | U5: =KKM!B24 -> 0 | V5: =KKM!B25 -> 0 | W5: JUMLAH | X5: Rata-rata | Y5: ABSENSI | AB5: Peringkat
C6: UTS | D6: UTS | E6: UTS | F6: UTS | G6: UTS | H6: UTS | I6: UTS | J6: UTS | K6: UTS | L6: UTS | M6: UTS | N6: UTS | O6: UTS | P6: UTS | Q6: UTS | R6: UTS | S6: UTS | T6: UTS | U6: UTS | V6: UTS | W6: UTS | X6: UTS | Y6: S | Z6: I | AA6: A
A7: 1 | B7: =IF('DATA SISWA'!D13=0,"",'DATA SISWA'!D13) -> ACHMAD FATHIR IZUDDIN | C7: 65 | D7: 60 | E7: 60 | F7: 55 | G7: 65 | H7: 75 | I7: 65 | J7: 57 | K7: 75 | L7: 70 | M7: 70 | N7: 75 | O7: 36 | P7: 57 | Q7: 60 | R7: 60 | W7: =SUM(C7:T7) -> 1005 | X7: =IF(ISERROR(AVERAGE(C7:T7)),"",AVERAGE(C7:T7)) -> 62.8125 | AB7: =RANK(W7,$W$7:$W$66) -> 14 | AD7: ='[1]DATA SISWA'!D10 -> Lumajang | AE7: ='[1]DATA SISWA'!E10 -> 2004-07-14 | AF7: ='[1]DATA SISWA'!F10 -> Achmad Kamali Alfan | AG7: ='[1]DATA SISWA'!B10 -> 4121
A8: 2 | B8: =IF('DATA SISWA'!D14=0,"",'DATA SISWA'!D14) -> ACHMAD SEPTIAN HAMDANI | C8: 65 | D8: 68 | E8: 70 | F8: 78 | G8: 65 | H8: 60 | I8: 65 | J8: 46 | K8: 65 | L8: 70 | M8: 70 | N8: 75 | O8: 36 | P8: 36 | Q8: 68 | R8: 70 | W8: =SUM(C8:T8) -> 1007 | X8: =IF(ISERROR(AVERAGE(C8:T8)),"",AVERAGE(C8:T8)) -> 62.9375 | AB8: =RANK(W8,$W$7:$W$66) -> 13 | AD8: ='[1]DATA SISWA'!D11 -> Lumajang | AE8: ='[1]DATA SISWA'!E11 -> 2003-07-16 | AF8: ='[1]DATA SISWA'!F11 -> Imam Nawawi | AG8: ='[1]DATA SISWA'!B11 -> 4090
A9: 3 | B9: =IF('DATA SISWA'!D15=0,"",'DATA SISWA'!D15) -> ACHMAD SULAIMAN | C9: 65 | D9: 30 | E9: 60 | F9: 36 | G9: 65 | H9: 60 | I9: 65 | J9: 35 | K9: 55 | L9: 70 | M9: 70 | N9: 75 | O9: 19 | P9: 15 | Q9: 60 | R9: 60 | W9: =SUM(C9:T9) -> 840 | X9: =IF(ISERROR(AVERAGE(C9:T9)),"",AVERAGE(C9:T9)) -> 52.5 | AB9: =RANK(W9,$W$7:$W$66) -> 32 | AD9: ='[1]DATA SISWA'!D12 -> Lumajang | AE9: ='[1]DATA SISWA'!E12 -> 2002-07-21 | AF9: ='[1]DATA SISWA'!F12 -> Moch. Basuni | AG9: ='[1]DATA SISWA'!B12 -> 4124
A10: 4 | B10: =IF('DATA SISWA'!D16=0,"",'DATA SISWA'!D16) -> AININ NAFISA FEBRIYANTI | C10: 85 | D10: 72 | E10: 60 | F10: 56 | G10: 65 | H10: 75 | I10: 70 | J10: 70 | K10: 75 | L10: 70 | M10: 70 | N10: 75 | O10: 36 | P10: 59 | Q10: 72 | R10: 70 | W10: =SUM(C10:T10) -> 1080 | X10: =IF(ISERROR(AVERAGE(C10:T10)),"",AVERAGE(C10:T10)) -> 67.5 | AB10: =RANK(W10,$W$7:$W$66) -> 9 | AD10: ='[1]DATA SISWA'!D13 -> Lumajang | AE10: ='[1]DATA SISWA'!E13 -> 2003-04-04 | AF10: ='[1]DATA SISWA'!F13 -> Zainul Atim Slamet | AG10: ='[1]DATA SISWA'!B13 -> 4091
A11: 5 | B11: =IF('DATA SISWA'!D17=0,"",'DATA SISWA'!D17) -> AISYAH DWI ANDINI | C11: 85 | D11: 70 | E11: 70 | F11: 50 | G11: 65 | H11: 75 | I11: 70 | J11: 70 | K11: 75 | L11: 70 | M11: 70 | N11: 75 | O11: 39 | P11: 86 | Q11: 70 | R11: 70 | W11: 1110 | X11: 69.375 | AB11: =RANK(W11,$W$7:$W$66) -> 6 | AD11: ='[1]DATA SISWA'!D14 -> Lumajang | AE11: ='[1]DATA SISWA'!E14 -> 2003-07-06 | AF11: ='[1]DATA SISWA'!F14 -> Slamet Riyadi | AG11: ='[1]DATA SISWA'!B14 -> 4092
A12: 6 | B12: =IF('DATA SISWA'!D18=0,"",'DATA SISWA'!D18) -> AJENG AGUSTINA KIRANA PUTRI | C12: 80 | D12: 80 | E12: 70 | F12: 60 | G12: 65 | H12: 75 | I12: 70 | J12: 70 | K12: 75 | L12: 70 | M12: 70 | N12: 75 | O12: 48 | P12: 72 | Q12: 80 | R12: 70 | W12: 1130 | X12: 70.625 | AB12: 4 | AD12: ='[1]DATA SISWA'!D15 -> Lumajang | AE12: ='[1]DATA SISWA'!E15 -> 2003-08-12 | AF12: ='[1]DATA SISWA'!F15 -> Mochamad Amin | AG12: ='[1]DATA SISWA'!B15 -> 4093
A13: 7 | B13: =IF('DATA SISWA'!D19=0,"",'DATA SISWA'!D19) -> ALVIAN FAIZULHAQQI | C13: 65 | D13: 74 | E13: 60 | F13: 58 | G13: 65 | H13: 75 | I13: 65 | J13: 43 | K13: 75 | L13: 70 | M13: 70 | N13: 75 | O13: 26 | P13: 23 | Q13: 74 | R13: 60 | W13: 978 | X13: 61.125 | AB13: 21 | AD13: ='[1]DATA SISWA'!D16 -> Lumajang | AE13: ='[1]DATA SISWA'!E16 -> 2003-11-13 | AF13: ='[1]DATA SISWA'!F16 -> Mukhamad Fauzi | AG13: ='[1]DATA SISWA'!B16 -> 4136
A14: 8 | B14: =IF('DATA SISWA'!D20=0,"",'DATA SISWA'!D20) -> ANGGITA RIZKY YUGA MEISYA | C14: 85 | D14: 90 | E14: 70 | F14: 68 | G14: 65 | H14: 75 | I14: 70 | J14: 70 | K14: 85 | L14: 70 | M14: 70 | N14: 75 | O14: 42 | P14: 56 | Q14: 90 | R14: 70 | W14: 1151 | X14: 71.9375 | AB14: 2 | AD14: ='[1]DATA SISWA'!D17 -> Sidoarjo, | AE14: ='[1]DATA SISWA'!E17 -> 2003-10-29 | AF14: ='[1]DATA SISWA'!F17 -> 0 | AG14: ='[1]DATA SISWA'!B17 -> 4094
A15: 9 | B15: =IF('DATA SISWA'!D21=0,"",'DATA SISWA'!D21) -> AUFAN AZKAL ABRORI | C15: 65 | D15: 59 | E15: 70 | F15: 50 | G15: 65 | H15: 70 | I15: 65 | J15: 42 | K15: 65 | L15: 65 | M15: 70 | N15: 75 | O15: 10 | P15: 22 | Q15: 60 | R15: 60 | W15: 913 | X15: 57.0625 | AB15: 29 | AD15: ='[1]DATA SISWA'!D18 -> Lumajang | AE15: ='[1]DATA SISWA'!E18 -> 2003-09-11 | AF15: ='[1]DATA SISWA'!F18 -> Samsuhar | AG15: ='[1]DATA SISWA'!B18 -> 4095
A16: 10 | B16: =IF('DATA SISWA'!D22=0,"",'DATA SISWA'!D22) -> AURA SALSABILA WULAN SARI | C16: 65 | D16: 92 | E16: 70 | F16: 85 | G16: 65 | H16: 70 | I16: 65 | J16: 70 | K16: 85 | L16: 65 | M16: 70 | N16: 75 | O16: 37 | P16: 70 | Q16: 85 | R16: 70 | W16: 1139 | X16: 71.1875 | AB16: 3 | AD16: ='[1]DATA SISWA'!D19 -> Lumajang | AE16: ='[1]DATA SISWA'!E19 -> 2003-06-15 | AF16: ='[1]DATA SISWA'!F19 -> Wahyudi | AG16: ='[1]DATA SISWA'!B19 -> 4135
A17: 11 | B17: =IF('DATA SISWA'!D23=0,"",'DATA SISWA'!D23) -> AZZA PRISHAL DWI PUTRA | C17: 65 | D17: 53 | E17: 70 | F17: 43 | G17: 65 | H17: 70 | I17: 65 | J17: 44 | K17: 65 | L17: 70 | M17: 75 | N17: 75 | O17: 27 | P17: 24 | Q17: 60 | R17: 60 | W17: 931 | X17: 58.1875 | AB17: 28 | AD17: ='[1]DATA SISWA'!D20 -> Lumajang | AE17: ='[1]DATA SISWA'!E20 -> 2003-10-23 | AF17: ='[1]DATA SISWA'!F20 -> Sukadi | AG17: ='[1]DATA SISWA'!B20 -> 4096
A18: 12 | B18: =IF('DATA SISWA'!D24=0,"",'DATA SISWA'!D24) -> BALQIS NAILA AUDIA | C18: 85 | D18: 94 | E18: 70 | F18: 82 | G18: 65 | H18: 75 | I18: 70 | J18: 75 | K18: 85 | L18: 70 | M18: 70 | N18: 75 | O18: 52 | P18: 73 | Q18: 85 | R18: 70 | W18: 1196 | X18: 74.75 | AB18: 1 | AD18: ='[1]DATA SISWA'!D21 -> Lumajang | AE18: ='[1]DATA SISWA'!E21 -> 2003-11-04 | AF18: ='[1]DATA SISWA'!F21 -> Zainul Muttaqin | AG18: ='[1]DATA SISWA'!B21 -> 4097
A19: 13 | B19: =IF('DATA SISWA'!D25=0,"",'DATA SISWA'!D25) -> BIMA SATRIA DIRGANTARA | C19: 70 | D19: 70 | E19: 70 | F19: 58 | G19: 65 | H19: 70 | I19: 65 | J19: 50 | K19: 75 | L19: 65 | M19: 75 | N19: 75 | O19: 23 | P19: 30 | Q19: 70 | R19: 60 | W19: 991 | X19: 61.9375 | AB19: 18 | AD19: ='[1]DATA SISWA'!D22 -> Kampar | AE19: ='[1]DATA SISWA'!E22 -> 2002-11-09 | AF19: ='[1]DATA SISWA'!F22 -> Kastin | AG19: ='[1]DATA SISWA'!B22 -> 4061
A20: 14 | B20: =IF('DATA SISWA'!D26=0,"",'DATA SISWA'!D26) -> DEVI KARUNIA RATNA PUTRI | C20: 85 | D20: 80 | E20: 70 | F20: 72 | G20: 65 | H20: 75 | I20: 70 | J20: 70 | K20: 85 | L20: 70 | M20: 70 | N20: 75 | O20: 35 | P20: 63 | Q20: 80 | R20: 65 | W20: 1130 | X20: 70.625 | AB20: 4 | AD20: ='[1]DATA SISWA'!D23 -> Lumajang | AE20: ='[1]DATA SISWA'!E23 -> 2003-05-18 | AF20: ='[1]DATA SISWA'!F23 -> Kholiqul Sulton | AG20: ='[1]DATA SISWA'!B23 -> 4099
A21: 15 | B21: =IF('DATA SISWA'!D27=0,"",'DATA SISWA'!D27) -> DEVITA FEBRIANI PUTRI | C21: 80 | D21: 82 | E21: 70 | F21: 49 | G21: 65 | H21: 70 | I21: 70 | J21: 70 | K21: 85 | L21: 70 | M21: 70 | N21: 75 | O21: 30 | P21: 68 | Q21: 82 | R21: 65 | W21: 1101 | X21: 68.8125 | AB21: 7 | AD21: ='[1]DATA SISWA'!D24 -> Lumajang | AE21: ='[1]DATA SISWA'!E24 -> 2003-11-20 | AF21: ='[1]DATA SISWA'!F24 -> Ngateno | AG21: ='[1]DATA SISWA'!B24 -> 4101
A22: 16 | B22: =IF('DATA SISWA'!D28=0,"",'DATA SISWA'!D28) -> EKA AULIYA` PUTRI | C22: 80 | D22: 74 | E22: 70 | F22: 64 | G22: 65 | H22: 60 | I22: 70 | J22: 60 | K22: 65 | L22: 70 | M22: 70 | N22: 75 | O22: 54 | P22: 27 | Q22: 74 | R22: 70 | W22: 1048 | X22: 65.5 | AB22: 10 | AD22: ='[1]DATA SISWA'!D25 -> Lumajang | AE22: ='[1]DATA SISWA'!E25 -> 2003-12-02 | AF22: ='[1]DATA SISWA'!F25 -> Rahmad Hidayat (Tr) | AG22: ='[1]DATA SISWA'!B25 -> 4142
A23: 17 | B23: =IF('DATA SISWA'!D29=0,"",'DATA SISWA'!D29) -> ERSA PUSPITA EKA ROSA LINDA | C23: 80 | D23: 62 | E23: 70 | F23: 61 | G23: 65 | H23: 65 | I23: 70 | J23: 55 | K23: 75 | L23: 70 | M23: 70 | N23: 75 | O23: 35 | P23: 27 | Q23: 62 | R23: 60 | W23: 1002 | X23: 62.625 | AB23: 16 | AD23: ='[1]DATA SISWA'!D26 -> Lumajang | AE23: ='[1]DATA SISWA'!E26 -> 2003-05-09 | AF23: ='[1]DATA SISWA'!F26 -> Nadim | AG23: ='[1]DATA SISWA'!B26 -> 4102
A24: 18 | B24: =IF('DATA SISWA'!D30=0,"",'DATA SISWA'!D30) -> FABIYAN TRI BAKTI OKTAFIAN | C24: 65 | D24: 58 | E24: 70 | F24: 40 | G24: 65 | H24: 70 | I24: 65 | J24: 55 | K24: 75 | L24: 65 | M24: 70 | N24: 75 | O24: 27 | P24: 27 | Q24: 60 | R24: 70 | W24: 957 | X24: 59.8125 | AB24: 23 | AD24: ='[1]DATA SISWA'!D27 -> Lumajang | AE24: ='[1]DATA SISWA'!E27 -> 2003-04-28 | AF24: ='[1]DATA SISWA'!F27 -> Abdul Ghofur | AG24: ='[1]DATA SISWA'!B27 -> 4103
A25: 19 | B25: =IF('DATA SISWA'!D31=0,"",'DATA SISWA'!D31) -> FAKHIS GABRIL LIA | C25: 70 | D25: 76 | E25: 70 | F25: 78 | G25: 65 | H25: 70 | I25: 75 | J25: 60 | K25: 85 | L25: 70 | M25: 70 | N25: 75 | O25: 35 | P25: 50 | Q25: 76 | R25: 70 | W25: 1095 | X25: 68.4375 | AB25: 8 | AD25: ='[1]DATA SISWA'!D28 -> Lumajang | AE25: ='[1]DATA SISWA'!E28 -> 2004-03-20 | AF25: ='[1]DATA SISWA'!F28 -> Sugiarto | AG25: ='[1]DATA SISWA'!B28 -> 4125
A26: 20 | B26: =IF('DATA SISWA'!D32=0,"",'DATA SISWA'!D32) -> FELISITA APRILIA NUR NIHAYA | C26: 65 | D26: 70 | E26: 70 | F26: 40 | G26: 65 | H26: 70 | I26: 70 | J26: 50 | K26: 75 | L26: 70 | M26: 70 | N26: 75 | O26: 35 | P26: 50 | Q26: 70 | R26: 70 | W26: 1015 | X26: 63.4375 | AB26: 12 | AD26: ='[1]DATA SISWA'!D29 -> Lumajang | AE26: ='[1]DATA SISWA'!E29 -> 2004-02-22 | AF26: ='[1]DATA SISWA'!F29 -> Zainul Arifin | AG26: ='[1]DATA SISWA'!B29 -> 4105
A27: 21 | B27: =IF('DATA SISWA'!D33=0,"",'DATA SISWA'!D33) -> FIRDA DWI ANDRIANI | C27: 70 | D27: 50 | E27: 70 | F27: 44 | G27: 65 | H27: 60 | I27: 60 | J27: 45 | K27: 75 | L27: 65 | M27: 70 | N27: 75 | O27: 23 | P27: 44 | Q27: 60 | R27: 60 | W27: 936 | X27: 58.5 | AB27: 26 | AD27: ='[1]DATA SISWA'!D30 -> Lumajang | AE27: ='[1]DATA SISWA'!E30 -> 2003-08-06 | AF27: ='[1]DATA SISWA'!F30 -> Amirudin | AG27: ='[1]DATA SISWA'!B30 -> 4108
A28: 22 | B28: =IF('DATA SISWA'!D34=0,"",'DATA SISWA'!D34) -> GALANG MARDHOTILLAH SATOTO | C28: 70 | D28: 64 | E28: 70 | F28: 68 | G28: 65 | H28: 70 | I28: 60 | J28: 43 | K28: 75 | L28: 70 | M28: 70 | N28: 75 | O28: 23 | P28: 43 | Q28: 64 | R28: 60 | W28: 990 | X28: 61.875 | AB28: 19 | AD28: ='[1]DATA SISWA'!D31 -> Lumajang | AE28: ='[1]DATA SISWA'!E31 -> 2002-08-24 | AF28: ='[1]DATA SISWA'!F31 -> Sumarno | AG28: ='[1]DATA SISWA'!B31 -> 4140
A29: 23 | B29: =IF('DATA SISWA'!D35=0,"",'DATA SISWA'!D35) -> GALIH FAREL PRASETYO | C29: 65 | D29: 70 | E29: 70 | F29: 64 | G29: 65 | H29: 75 | I29: 70 | J29: 43 | K29: 70 | L29: 70 | M29: 70 | N29: 75 | O29: 15 | P29: 43 | Q29: 70 | R29: 70 | W29: 1005 | X29: 62.8125 | AB29: 14 | AD29: ='[1]DATA SISWA'!D32 -> Lumajang | AE29: ='[1]DATA SISWA'!E32 -> 2002-12-02 | AF29: ='[1]DATA SISWA'!F32 -> Mahmud | AG29: ='[1]DATA SISWA'!B32 -> 4130
A30: 24 | B30: =IF('DATA SISWA'!D36=0,"",'DATA SISWA'!D36) -> GILANG AKBAR PRASETYO | C30: 65 | D30: 50 | E30: 60 | F30: 43 | G30: 65 | H30: 70 | I30: 60 | J30: 39 | K30: 65 | L30: 70 | M30: 70 | N30: 75 | O30: 19 | P30: 19 | Q30: 60 | R30: 60 | W30: 890 | X30: 55.625 | AB30: 31 | AD30: ='[1]DATA SISWA'!D33 -> Lumajang | AE30: ='[1]DATA SISWA'!E33 -> 2003-04-29 | AF30: ='[1]DATA SISWA'!F33 -> Miftahul Hadi | AG30: ='[1]DATA SISWA'!B33 -> 4112
A31: 25 | B31: =IF('DATA SISWA'!D37=0,"",'DATA SISWA'!D37) -> HADI GUNAWAN | W31: 0 | AB31: 33 | AD31: ='[1]DATA SISWA'!D34 -> Lumajang | AE31: ='[1]DATA SISWA'!E34 -> 2003-11-16 | AF31: ='[1]DATA SISWA'!F34 -> Mohamad Yusuf | AG31: ='[1]DATA SISWA'!B34 -> 4113
A32: 26 | B32: =IF('DATA SISWA'!D38=0,"",'DATA SISWA'!D38) -> IKA KURNIA WATI AGUSTINA | C32: 70 | D32: 61 | E32: 60 | F32: 6 | G32: 65 | H32: 75 | I32: 70 | J32: 70 | K32: 70 | L32: 75 | M32: 70 | N32: 75 | O32: 26 | P32: 66 | Q32: 61 | R32: 60 | W32: 980 | X32: 61.25 | AB32: 20 | AD32: ='[1]DATA SISWA'!D35 -> Lumajang | AE32: ='[1]DATA SISWA'!E35 -> 2004-06-07 | AF32: ='[1]DATA SISWA'!F35 -> Timbul | AG32: ='[1]DATA SISWA'!B35 -> 4114
A33: 27 | B33: =IF('DATA SISWA'!D39=0,"",'DATA SISWA'!D39) -> IYAAD AFLAKHA RAMZII | C33: 65 | D33: 68 | E33: 60 | F33: 60 | G33: 65 | H33: 70 | I33: 75 | J33: 60 | K33: 70 | L33: 75 | M33: 75 | N33: 75 | O33: 15 | P33: 28 | Q33: 68 | R33: 70 | W33: 999 | X33: 62.4375 | AB33: 17 | AD33: ='[1]DATA SISWA'!D36 -> Lumajang | AE33: ='[1]DATA SISWA'!E36 -> 2003-10-08 | AF33: ='[1]DATA SISWA'!F36 -> Masduki | AG33: ='[1]DATA SISWA'!B36 -> 4115
A34: 28 | B34: =IF('DATA SISWA'!D40=0,"",'DATA SISWA'!D40) -> JULI ANDRIYANTO | C34: 65 | D34: 53 | E34: 60 | F34: 54 | G34: 65 | H34: 75 | I34: 65 | J34: 37 | K34: 70 | L34: 75 | M34: 70 | N34: 75 | O34: 35 | P34: 17 | Q34: 60 | R34: 60 | W34: 936 | X34: 58.5 | AB34: 26 | AD34: ='[1]DATA SISWA'!D37 -> Lumajang | AE34: ='[1]DATA SISWA'!E37 -> 2004-01-21 | AF34: ='[1]DATA SISWA'!F37 -> M. Khamdani Syaifullah | AG34: ='[1]DATA SISWA'!B37 -> 4116
A35: 29 | B35: =IF('DATA SISWA'!D41=0,"",'DATA SISWA'!D41) -> M. RIZKY RIDWAN | C35: 65 | D35: 44 | E35: 70 | F35: 26 | G35: 65 | H35: 70 | I35: 70 | J35: 30 | K35: 70 | L35: 65 | M35: 70 | N35: 75 | O35: 29 | P35: 20 | Q35: 60 | R35: 70 | W35: 899 | X35: 56.1875 | AB35: 30 | AD35: ='[1]DATA SISWA'!D38 -> Lumajang | AE35: ='[1]DATA SISWA'!E38 -> 2003-09-24 | AF35: ='[1]DATA SISWA'!F38 -> Suyanto | AG35: ='[1]DATA SISWA'!B38 -> 4117
A36: 30 | B36: =IF('DATA SISWA'!D42=0,"",'DATA SISWA'!D42) -> MOCHAMAD RAFLI DIAN SAPUTRA | C36: 70 | D36: 69 | E36: 70 | F36: 54 | G36: 65 | H36: 70 | I36: 65 | J36: 43 | K36: 70 | L36: 75 | M36: 70 | N36: 75 | O36: 30 | P36: 23 | Q36: 69 | R36: 60 | W36: 978 | X36: 61.125 | AB36: 21
A37: 31 | B37: =IF('DATA SISWA'!D43=0,"",'DATA SISWA'!D43) -> MUHAMMAD ALVIN RIDHO | C37: 85 | D37: 70 | E37: 70 | F37: 68 | G37: 65 | H37: 70 | I37: 65 | J37: 55 | K37: 70 | L37: 70 | M37: 75 | N37: 75 | O37: 35 | P37: 25 | Q37: 70 | R37: 60 | W37: 1028 | X37: 64.25 | AB37: 11
A38: 32 | B38: =IF('DATA SISWA'!D44=0,"",'DATA SISWA'!D44) -> STANY RAFIDAH RAHMANIA | C38: 80 | D38: 46 | E38: 60 | F38: 38 | G38: 65 | H38: 70 | I38: 65 | J38: 50 | K38: 70 | L38: 75 | M38: 70 | N38: 75 | O38: 19 | P38: 37 | Q38: 60 | R38: 60 | W38: 940 | X38: 58.75 | AB38: 25
A39: 33 | B39: =IF('DATA SISWA'!D45=0,"",'DATA SISWA'!D45) -> USWATUN KHASANAH | C39: 65 | D39: 56 | E39: 60 | F39: 52 | G39: 65 | H39: 60 | I39: 70 | J39: 30 | K39: 70 | L39: 65 | M39: 70 | N39: 75 | O39: 26 | P39: 60 | Q39: 60 | R39: 60 | W39: 944 | X39: 59 | AB39: 24
A40: 34 | B40: =IF('DATA SISWA'!D46=0,"",'DATA SISWA'!D46) ->  | W40: 0 | AB40: 33
A41: 35 | B41: =IF('DATA SISWA'!D47=0,"",'DATA SISWA'!D47) ->  | W41: 0 | AB41: 33 | AD41: ='[1]DATA SISWA'!D39 -> 0 | AE41: ='[1]DATA SISWA'!E39 -> 00:00:00 | AF41: ='[1]DATA SISWA'!F39 -> 0 | AG41: ='[1]DATA SISWA'!B39 -> 0
A42: 36 | B42: =IF('DATA SISWA'!D48=0,"",'DATA SISWA'!D48) ->  | W42: 0 | AB42: 33
A43: 37 | B43: =IF('DATA SISWA'!D49=0,"",'DATA SISWA'!D49) ->  | W43: 0 | AB43: 33
A44: 38 | B44: =IF('DATA SISWA'!D50=0,"",'DATA SISWA'!D50) ->  | W44: 0 | AB44: 33
A45: 39 | B45: =IF('DATA SISWA'!D51=0,"",'DATA SISWA'!D51) ->  | W45: 0 | AB45: 33
A46: 40 | B46: =IF('DATA SISWA'!D52=0,"",'DATA SISWA'!D52) ->  | W46: 0 | AB46: 33
A47: 41 | B47: =IF('DATA SISWA'!D53=0,"",'DATA SISWA'!D53) ->  | W47: 0 | AB47: 33
A48: 42 | B48: =IF('DATA SISWA'!D54=0,"",'DATA SISWA'!D54) ->  | W48: 0 | AB48: 33
A49: 43 | B49: =IF('DATA SISWA'!D55=0,"",'DATA SISWA'!D55) ->  | W49: =SUM(C49:T49) -> 0 | X49: =IF(ISERROR(AVERAGE(C49:T49)),"",AVERAGE(C49:T49)) ->  | AB49: 33
A50: 44 | B50: =IF('DATA SISWA'!D56=0,"",'DATA SISWA'!D56) ->  | W50: =SUM(C50:T50) -> 0 | X50: =IF(ISERROR(AVERAGE(C50:T50)),"",AVERAGE(C50:T50)) ->  | AB50: 33
A51: 45 | B51: =IF('DATA SISWA'!D57=0,"",'DATA SISWA'!D57) ->  | W51: =SUM(C51:T51) -> 0 | X51: =IF(ISERROR(AVERAGE(C51:T51)),"",AVERAGE(C51:T51)) ->  | AB51: 33
A52: 46 | B52: =IF('DATA SISWA'!D58=0,"",'DATA SISWA'!D58) ->  | W52: 0 | AB52: 33
A53: 47 | B53: =IF('DATA SISWA'!D59=0,"",'DATA SISWA'!D59) ->  | W53: 0 | AB53: 33
A54: 48 | B54: =IF('DATA SISWA'!D60=0,"",'DATA SISWA'!D60) ->  | W54: 0 | AB54: 33
A55: 49 | B55: =IF('DATA SISWA'!D61=0,"",'DATA SISWA'!D61) ->  | W55: 0 | AB55: 33
A56: 50 | B56: =IF('DATA SISWA'!D62=0,"",'DATA SISWA'!D62) ->  | W56: 0 | AB56: 33
A57: 51 | B57: =IF('DATA SISWA'!D63=0,"",'DATA SISWA'!D63) ->  | W57: =SUM(C57:T57) -> 0 | X57: =IF(ISERROR(AVERAGE(C57:T57)),"",AVERAGE(C57:T57)) ->  | AB57: 33
A58: 52 | B58: =IF('DATA SISWA'!D64=0,"",'DATA SISWA'!D64) ->  | W58: =SUM(C58:T58) -> 0 | X58: =IF(ISERROR(AVERAGE(C58:T58)),"",AVERAGE(C58:T58)) ->  | AB58: 33
A59: 53 | B59: =IF('DATA SISWA'!D65=0,"",'DATA SISWA'!D65) ->  | W59: =SUM(C59:T59) -> 0 | X59: =IF(ISERROR(AVERAGE(C59:T59)),"",AVERAGE(C59:T59)) ->  | AB59: 33
A60: 54 | B60: =IF('DATA SISWA'!D66=0,"",'DATA SISWA'!D66) ->  | W60: 0 | AB60: 33
A61: 55 | B61: =IF('DATA SISWA'!D67=0,"",'DATA SISWA'!D67) ->  | W61: =SUM(C61:T61) -> 0 | X61: =IF(ISERROR(AVERAGE(C61:T61)),"",AVERAGE(C61:T61)) ->  | AB61: 33
A62: 56 | B62: =IF('DATA SISWA'!D68=0,"",'DATA SISWA'!D68) ->  | W62: =SUM(C62:T62) -> 0 | X62: =IF(ISERROR(AVERAGE(C62:T62)),"",AVERAGE(C62:T62)) ->  | AB62: 33
A63: 57 | B63: =IF('DATA SISWA'!D69=0,"",'DATA SISWA'!D69) ->  | W63: =SUM(C63:T63) -> 0 | X63: =IF(ISERROR(AVERAGE(C63:T63)),"",AVERAGE(C63:T63)) ->  | AB63: 33
A64: 58 | B64: =IF('DATA SISWA'!D70=0,"",'DATA SISWA'!D70) ->  | W64: =SUM(C64:T64) -> 0 | X64: =IF(ISERROR(AVERAGE(C64:T64)),"",AVERAGE(C64:T64)) ->  | AB64: 33
A65: 59 | B65: =IF('DATA SISWA'!D71=0,"",'DATA SISWA'!D71) ->  | W65: =SUM(C65:T65) -> 0 | X65: =IF(ISERROR(AVERAGE(C65:T65)),"",AVERAGE(C65:T65)) ->  | AB65: 33
A66: 60 | B66: =IF('DATA SISWA'!D72=0,"",'DATA SISWA'!D72) ->  | W66: =SUM(C66:T66) -> 0 | X66: =IF(ISERROR(AVERAGE(C66:T66)),"",AVERAGE(C66:T66)) ->  | AB66: 33

Sheet RAPOR
A8: DAFTAR NILAI
A9: ='DATA SISWA'!L6 -> UJIAN TENGAH SEMESTER I (GANJIL)
A10: ='DATA SISWA'!L7 -> TAHUN PELAJARAN 2017/2018
A12: N a m a | D12: : | E12: =UPPER(VLOOKUP($K$12,'DATA SISWA'!$A$13:$P$72,4,0)) -> MOCHAMAD RAFLI DIAN SAPUTRA | K12: 30
A13: Tempat,Tanggal Lahir | D13: : | E13: =PROPER(VLOOKUP($K$12,'DATA SISWA'!$A$13:$P$72,12,0)) -> Lumajang, 28 Juli 2007
A14: Nama Orang Tua | D14: : | E14: =PROPER(VLOOKUP($K$12,'DATA SISWA'!$A$13:$P$72,8,0)) -> Samsul Arifin
A15: Nomor Induk | D15: : | E15: =VLOOKUP($K$12,'DATA SISWA'!$A$13:$P$72,3,0) -> 4351
A16: NISN | D16: : | E16: =IF(VLOOKUP($K$12,'DATA SISWA'!$A$13:$P$72,2,0)=0,"-",VLOOKUP($K$12,'DATA SISWA'!$A$13:$P$72,2,0)) -> 0076361559
A18: NO | B18: Mata Pelajaran | F18: NILAI | G18: KKM | H18: Predikat | I18: DESKRIPSI
F19: UTS
A20: 1. | B20: Pendidikan Agama | H20: =IF(F20<G20,"C",IF(F20>G20,"B","")) -> 
B21: a. | C21: =IF(KKM!B3=0,"",KKM!B3) -> Alquran Hadits | F21: =IF(VLOOKUP($K$12,'REKAP NILAI'!$A$7:$AB$41,3,0)=0,"",VLOOKUP($K$12,'REKAP NILAI'!$A$7:$AB$41,3,0)) -> 70 | G21: =IF(KKM!D3="","",KKM!D3) -> 70 | H21: =IF(F21<40,"D",IF(F21<G21,"C",IF(F21<80,"B","A"))) -> B | I21: ="ananda "&VLOOKUP($K$12,'DATA SISWA'!$A$13:$P$72,5,0)&" "&IF(RAPOR!H21="D","Kurang",IF(RAPOR!H21="C","Cukup",IF(RAPOR!H21="B","Baik",IF(RAPOR!H21="A","Sangat Baik",""))))&" dalam mengartikan dan memahami isi materi "&C21 -> ananda RAFLI Baik dalam mengartikan dan memahami isi materi Alquran Hadits
B22: b. | C22: =IF(KKM!B4=0,"",KKM!B4) -> Aqidah Akhlak | F22: =IF(VLOOKUP($K$12,'REKAP NILAI'!$A$7:$AB$41,5,0)=0,"",VLOOKUP($K$12,'REKAP NILAI'!$A$7:$AB$41,5,0)) -> 70 | G22: =IF(KKM!D4="","",KKM!D4) -> 70 | H22: B | I22: ="ananda "&VLOOKUP($K$12,'DATA SISWA'!$A$13:$P$72,5,0)&" "&IF(RAPOR!H22="D","Kurang",IF(RAPOR!H22="C","Cukup",IF(RAPOR!H22="B","Baik",IF(RAPOR!H22="A","Sangat Baik",""))))&" dalam mengartikan dan memahami isi materi "&C22 -> ananda RAFLI Baik dalam mengartikan dan memahami isi materi Aqidah Akhlak
B23: c. | C23: =IF(KKM!B5=0,"",KKM!B5) -> Fiqih | F23: =IF(VLOOKUP($K$12,'REKAP NILAI'!$A$7:$AB$41,5,0)=0,"",VLOOKUP($K$12,'REKAP NILAI'!$A$7:$AB$41,5,0)) -> 70 | G23: =IF(KKM!D5="","",KKM!D5) -> 70 | H23: B | I23: ="ananda "&VLOOKUP($K$12,'DATA SISWA'!$A$13:$P$72,5,0)&" "&IF(RAPOR!H23="D","Kurang",IF(RAPOR!H23="C","Cukup",IF(RAPOR!H23="B","Baik",IF(RAPOR!H23="A","Sangat Baik",""))))&" dalam mengartikan dan memahami isi materi "&C23 -> ananda RAFLI Baik dalam mengartikan dan memahami isi materi Fiqih
B24: d. | C24: =IF(KKM!B6=0,"",KKM!B6) -> Sejarah Kebudayaan Islam | F24: =IF(VLOOKUP($K$12,'REKAP NILAI'!$A$7:$AB$41,6,0)=0,"",VLOOKUP($K$12,'REKAP NILAI'!$A$7:$AB$41,6,0)) -> 54 | G24: =IF(KKM!D6="","",KKM!D6) -> 70 | H24: C | I24: ="ananda "&VLOOKUP($K$12,'DATA SISWA'!$A$13:$P$72,5,0)&" "&IF(RAPOR!H24="D","Kurang",IF(RAPOR!H24="C","Cukup",IF(RAPOR!H24="B","Baik",IF(RAPOR!H24="A","Sangat Baik",""))))&" dalam mengartikan dan memahami isi materi "&C24 -> ananda RAFLI Cukup dalam mengartikan dan memahami isi materi Sejarah Kebudayaan Islam
A25: 2 | B25: =KKM!A7 -> PPKn | F25: =IF(VLOOKUP($K$12,'REKAP NILAI'!$A$7:$AB$41,7,0)=0,"",VLOOKUP($K$12,'REKAP NILAI'!$A$7:$AB$41,7,0)) -> 65 | G25: =IF(KKM!D7="","",KKM!D7) -> 70 | H25: C | I25: ="ananda "&VLOOKUP($K$12,'DATA SISWA'!$A$13:$P$72,5,0)&" "&IF(RAPOR!H25="D","Kurang",IF(RAPOR!H25="C","Cukup",IF(RAPOR!H25="B","Baik",IF(RAPOR!H25="A","Sangat Baik","")))&" dalam mengartikan dan memahami isi materi "&B25) -> ananda RAFLI Cukup dalam mengartikan dan memahami isi materi PPKn
A26: 3 | B26: =KKM!A8 -> B.Indonesia | F26: =IF(VLOOKUP($K$12,'REKAP NILAI'!$A$7:$AB$41,8,0)=0,"",VLOOKUP($K$12,'REKAP NILAI'!$A$7:$AB$41,8,0)) -> 70 | G26: =IF(KKM!D8="","",KKM!D8) -> 70 | H26: B | I26: ="ananda "&VLOOKUP($K$12,'DATA SISWA'!$A$13:$P$72,5,0)&" "&IF(RAPOR!H26="D","Kurang",IF(RAPOR!H26="C","Cukup",IF(RAPOR!H26="B","Baik",IF(RAPOR!H26="A","Sangat Baik",""))))&" dalam mengartikan dan memahami isi materi "&B26 -> ananda RAFLI Baik dalam mengartikan dan memahami isi materi B.Indonesia
A27: 4 | B27: =KKM!A9 -> B. Arab | F27: =IF(VLOOKUP($K$12,'REKAP NILAI'!$A$7:$AB$41,9,0)=0,"",VLOOKUP($K$12,'REKAP NILAI'!$A$7:$AB$41,9,0)) -> 65 | G27: =IF(KKM!D9="","",KKM!D9) -> 70 | H27: C | I27: ="ananda "&VLOOKUP($K$12,'DATA SISWA'!$A$13:$P$72,5,0)&" "&IF(RAPOR!H27="D","Kurang",IF(RAPOR!H27="C","Cukup",IF(RAPOR!H27="B","Baik",IF(RAPOR!H27="A","Sangat Baik",""))))&" dalam mengartikan dan memahami isi materi "&B27 -> ananda RAFLI Cukup dalam mengartikan dan memahami isi materi B. Arab
A28: 5 | B28: =KKM!A10 -> Matematika | F28: =IF(VLOOKUP($K$12,'REKAP NILAI'!$A$7:$AB$41,10,0)=0,"",VLOOKUP($K$12,'REKAP NILAI'!$A$7:$AB$41,10,0)) -> 43 | G28: =IF(KKM!D10="","",KKM!D10) -> 70 | H28: C | I28: ="ananda "&VLOOKUP($K$12,'DATA SISWA'!$A$13:$P$72,5,0)&" "&IF(RAPOR!H28="D","Kurang",IF(RAPOR!H28="C","Cukup",IF(RAPOR!H28="B","Baik",IF(RAPOR!H28="A","Sangat Baik",""))))&" dalam mengartikan dan memahami isi materi "&B28 -> ananda RAFLI Cukup dalam mengartikan dan memahami isi materi Matematika
A29: 6 | B29: =KKM!A11 -> IPA | F29: =IF(VLOOKUP($K$12,'REKAP NILAI'!$A$7:$AB$41,11,0)=0,"",VLOOKUP($K$12,'REKAP NILAI'!$A$7:$AB$41,11,0)) -> 70 | G29: =IF(KKM!D11="","",KKM!D11) -> 70 | H29: B | I29: ="ananda "&VLOOKUP($K$12,'DATA SISWA'!$A$13:$P$72,5,0)&" "&IF(RAPOR!H29="D","Kurang",IF(RAPOR!H29="C","Cukup",IF(RAPOR!H29="B","Baik",IF(RAPOR!H29="A","Sangat Baik",""))))&" dalam mengartikan dan memahami isi materi "&B29 -> ananda RAFLI Baik dalam mengartikan dan memahami isi materi IPA
A30: 7 | B30: =KKM!A12 -> IPS | F30: =IF(VLOOKUP($K$12,'REKAP NILAI'!$A$7:$AB$41,12,0)=0,"",VLOOKUP($K$12,'REKAP NILAI'!$A$7:$AB$41,12,0)) -> 75 | G30: =IF(KKM!D12="","",KKM!D12) -> 70 | H30: B | I30: ="ananda "&VLOOKUP($K$12,'DATA SISWA'!$A$13:$P$72,5,0)&" "&IF(RAPOR!H30="D","Kurang",IF(RAPOR!H30="C","Cukup",IF(RAPOR!H30="B","Baik",IF(RAPOR!H30="A","Sangat Baik",""))))&" dalam mengartikan dan memahami isi materi "&B30 -> ananda RAFLI Baik dalam mengartikan dan memahami isi materi IPS
A31: 8 | B31: =KKM!A13 -> Kertakes | F31: =IF(VLOOKUP($K$12,'REKAP NILAI'!$A$7:$AB$41,13,0)=0,"",VLOOKUP($K$12,'REKAP NILAI'!$A$7:$AB$41,13,0)) -> 70 | G31: =IF(KKM!D13="","",KKM!D13) -> 75 | H31: C | I31: ="ananda "&VLOOKUP($K$12,'DATA SISWA'!$A$13:$P$72,5,0)&" "&IF(RAPOR!H31="D","Kurang",IF(RAPOR!H31="C","Cukup",IF(RAPOR!H31="B","Baik",IF(RAPOR!H31="A","Sangat Baik",""))))&" dalam mengartikan dan memahami isi materi "&B31 -> ananda RAFLI Cukup dalam mengartikan dan memahami isi materi Kertakes
A32: 9 | B32: =KKM!A14 -> Penjaskes | F32: =IF(VLOOKUP($K$12,'REKAP NILAI'!$A$7:$AB$41,15,0)=0,"",VLOOKUP($K$12,'REKAP NILAI'!$A$7:$AB$41,15,0)) -> 30 | G32: =IF(KKM!D14="","",KKM!D14) -> 75 | H32: D | I32: ="ananda "&VLOOKUP($K$12,'DATA SISWA'!$A$13:$P$72,5,0)&" "&IF(RAPOR!H32="D","Kurang",IF(RAPOR!H32="C","Cukup",IF(RAPOR!H32="B","Baik",IF(RAPOR!H32="A","Sangat Baik",""))))&" dalam mengartikan dan memahami isi materi "&B32 -> ananda RAFLI Kurang dalam mengartikan dan memahami isi materi Penjaskes
A33: 10 | B33: =KKM!A15 -> Muatan Lokal :
B34: a. | C34: =KKM!B16 -> B. Daerah | F34: =IF(VLOOKUP($K$12,'REKAP NILAI'!$A$7:$AB$41,15,0)=0,"",VLOOKUP($K$12,'REKAP NILAI'!$A$7:$AB$41,15,0)) -> 30 | G34: =IF(KKM!D16="","",KKM!D16) -> 70 | H34: =IF(F34<40,"D",IF(F34<G34,"C",IF(F34<80,"B","A"))) -> D | I34: ="ananda "&VLOOKUP($K$12,'DATA SISWA'!$A$13:$P$72,5,0)&" "&IF(RAPOR!H34="D","Kurang",IF(RAPOR!H34="C","Cukup",IF(RAPOR!H34="B","Baik",IF(RAPOR!H34="A","Sangat Baik",""))))&" dalam mengartikan dan memahami isi materi "&C34 -> ananda RAFLI Kurang dalam mengartikan dan memahami isi materi B. Daerah
B35: b. | C35: =KKM!B17 -> B. Inggris | F35: =IF(VLOOKUP($K$12,'REKAP NILAI'!$A$7:$AB$41,16,0)=0,"",VLOOKUP($K$12,'REKAP NILAI'!$A$7:$AB$41,16,0)) -> 23 | G35: =IF(KKM!D17="","",KKM!D17) -> 65 | H35: =IF(F35<40,"D",IF(F35<G35,"C",IF(F35<80,"B","A"))) -> D | I35: ="ananda "&VLOOKUP($K$12,'DATA SISWA'!$A$13:$P$72,5,0)&" "&IF(RAPOR!H35="D","Kurang",IF(RAPOR!H35="C","Cukup",IF(RAPOR!H35="B","Baik",IF(RAPOR!H35="A","Sangat Baik",""))))&" dalam mengartikan dan memahami isi materi "&C35 -> ananda RAFLI Kurang dalam mengartikan dan memahami isi materi B. Inggris
B36: c. | C36: =KKM!B18 -> Aswaja | F36: =IF(VLOOKUP($K$12,'REKAP NILAI'!$A$7:$AB$41,17,0)=0,"",VLOOKUP($K$12,'REKAP NILAI'!$A$7:$AB$41,17,0)) -> 69 | G36: =IF(KKM!D18="","",KKM!D18) -> 70 | H36: =IF(F36<40,"D",IF(F36<G36,"C",IF(F36<80,"B","A"))) -> C | I36: ="ananda "&VLOOKUP($K$12,'DATA SISWA'!$A$13:$P$72,5,0)&" "&IF(RAPOR!H36="D","Kurang",IF(RAPOR!H36="C","Cukup",IF(RAPOR!H36="B","Baik",IF(RAPOR!H36="A","Sangat Baik",""))))&" dalam mengartikan dan memahami isi materi "&C36 -> ananda RAFLI Cukup dalam mengartikan dan memahami isi materi Aswaja
B37: d. | C37: =KKM!B19 -> Nahwu-Shorof | F37: =IF(VLOOKUP($K$12,'REKAP NILAI'!$A$7:$AB$41,18,0)=0,"",VLOOKUP($K$12,'REKAP NILAI'!$A$7:$AB$41,18,0)) -> 60 | G37: =IF(KKM!D19="","",KKM!D19) -> 70 | H37: =IF(F37<40,"D",IF(F37<G37,"C",IF(F37<80,"B","A"))) -> C | I37: ="ananda "&VLOOKUP($K$12,'DATA SISWA'!$A$13:$P$72,5,0)&" "&IF(RAPOR!H37="D","Kurang",IF(RAPOR!H37="C","Cukup",IF(RAPOR!H37="B","Baik",IF(RAPOR!H37="A","Sangat Baik",""))))&" dalam mengartikan dan memahami isi materi "&C37 -> ananda RAFLI Cukup dalam mengartikan dan memahami isi materi Nahwu-Shorof
A38: 11 | B38: =IFERROR([1]Server!B37,"") -> Ektrakurikuler | I38: ="ananda "&VLOOKUP($K$12,'DATA SISWA'!$A$13:$P$72,5,0)&IF(RAPOR!H38="D","Kurang",IF(RAPOR!H38="C","Cukup",IF(RAPOR!H38="B","Baik",IF(RAPOR!H38="A","Sangat Baik","")&" dalam mengartikan dan memahami isi materi "&'REKAP NILAI'!C22))) -> ananda RAFLI dalam mengartikan dan memahami isi materi 80
B39: =IFERROR([1]Server!B38,"") -> a. | C39: =IF(KKM!B22=0,"",KKM!B22) -> TIK | F39: =IF(VLOOKUP($K$12,'REKAP NILAI'!$A$7:$AB$41,19,0)=0,"",VLOOKUP($K$12,'REKAP NILAI'!$A$7:$AB$41,19,0)) ->  | G39: =IF(KKM!D22="","",KKM!D22) ->  | H39: =IF(F39<40,"D",IF(F39<G39,"C",IF(F39<80,"B",""))) ->  | I39: ="ananda "&VLOOKUP($K$12,'DATA SISWA'!$A$13:$P$72,5,0)&IF(RAPOR!H39="D","Kurang",IF(RAPOR!H39="C","Cukup",IF(RAPOR!H39="B","Baik",IF(RAPOR!H39="A","Sangat Baik","")&" dalam mengartikan dan memahami isi materi "&'REKAP NILAI'!C23))) -> ananda RAFLI dalam mengartikan dan memahami isi materi 80
B40: =IFERROR([1]Server!B39,"") -> b. | C40: =IF(KKM!B23=0,"",KKM!B23) -> Ulangan | F40: =IF(VLOOKUP($K$12,'REKAP NILAI'!$A$7:$AB$41,20,0)=0,"",VLOOKUP($K$12,'REKAP NILAI'!$A$7:$AB$41,20,0)) ->  | G40: =IF(KKM!D23="","",KKM!D23) ->  | I40: ="ananda "&VLOOKUP($K$12,'DATA SISWA'!$A$13:$P$72,5,0)&IF(RAPOR!H40="D","Kurang",IF(RAPOR!H40="C","Cukup",IF(RAPOR!H40="B","Baik",IF(RAPOR!H40="A","Sangat Baik","")&" dalam mengartikan dan memahami isi materi "&'REKAP NILAI'!C24))) -> ananda RAFLI dalam mengartikan dan memahami isi materi 65
B41: =IFERROR([1]Server!B40,"") -> c. | C41: =IF(KKM!B24=0,"",KKM!B24) ->  | F41: =IF(VLOOKUP($K$12,'REKAP NILAI'!$A$7:$AB$41,21,0)=0,"",VLOOKUP($K$12,'REKAP NILAI'!$A$7:$AB$41,21,0)) ->  | G41: =IF(KKM!D24="","",KKM!D24) ->  | I41: ="ananda "&VLOOKUP($K$12,'DATA SISWA'!$A$13:$P$72,5,0)&IF(RAPOR!H41="D","Kurang",IF(RAPOR!H41="C","Cukup",IF(RAPOR!H41="B","Baik",IF(RAPOR!H41="A","Sangat Baik","")&" dalam mengartikan dan memahami isi materi "&'REKAP NILAI'!C25))) -> ananda RAFLI dalam mengartikan dan memahami isi materi 70
B42: =IFERROR([1]Server!B41,"") -> d. | C42: =IF(KKM!B25=0,"",KKM!B25) ->  | F42: =IF(VLOOKUP($K$12,'REKAP NILAI'!$A$7:$AB$41,22,0)=0,"",VLOOKUP($K$12,'REKAP NILAI'!$A$7:$AB$41,22,0)) ->  | G42: =IF(KKM!D25="","",KKM!D25) ->  | I42: ="ananda "&VLOOKUP($K$12,'DATA SISWA'!$A$13:$P$72,5,0)&IF(RAPOR!H42="D","Kurang",IF(RAPOR!H42="C","Cukup",IF(RAPOR!H42="B","Baik",IF(RAPOR!H42="A","Sangat Baik","")&" dalam mengartikan dan memahami isi materi "&'REKAP NILAI'!C26))) -> ananda RAFLI dalam mengartikan dan memahami isi materi 65
A43: =IFERROR([1]Server!B42,"") -> JUMLAH | F43: =VLOOKUP($K$12,'REKAP NILAI'!$A$7:$AB$41,23,0) -> 978
A44: =[1]Server!B43 -> RATA-RATA | F44: =VLOOKUP($K$12,'REKAP NILAI'!$A$7:$AB$41,24,0) -> 61.125 | G44: =[1]Server!F43 -> RANGKING : | I44: =VLOOKUP($K$12,'REKAP NILAI'!$A$7:$AB$41,28,0) -> 21
C46: SAKIT | D46: : | E46: =IF(VLOOKUP($K$12,'REKAP NILAI'!$A$7:$AB$41,25,0)=0,"-",VLOOKUP($K$12,'REKAP NILAI'!$A$7:$AB$41,25,0)) -> - | H46: PESAN WALI KELAS :
C47: IJIN | D47: : | E47: =IF(VLOOKUP($K$12,'REKAP NILAI'!$A$7:$AB$41,26,0)=0,"-",VLOOKUP($K$12,'REKAP NILAI'!$A$7:$AB$41,26,0)) -> - | H47: =VLOOKUP($K$12,'DATA SISWA'!$A$13:$P$72,9,0) -> Jangan malas belajar, lebih giat dalam belajar!
C48: ALPA | D48: : | E48: =IF(VLOOKUP($K$12,'REKAP NILAI'!$A$7:$AB$41,27,0)=0,"-",VLOOKUP($K$12,'REKAP NILAI'!$A$7:$AB$41,27,0)) -> - | H48: =VLOOKUP($K$12,'DATA SISWA'!$A$13:$P$72,10,0) -> -
I49: =UPPER('DATA SISWA'!E9) -> LABRUK KIDUL, 31 OKTOBER 2017
A50: WALI MURID | F50: KEPALA MADRASAH | I50: ='DATA SISWA'!L5 -> WALI KELAS IV (EMPAT) A
A54: _______________ | F54: ='DATA SISWA'!E3 -> SAHRONI,S.Pd.I | I54: ='DATA SISWA'!E5 -> CHUSNI KURNIAWAN,S.Pd.
A55: (ttd dan nama terang)

Sheet HITUNGAN UTS (ABAIKAN)
A1: ROM1 | B1: 5 | C1: =D1*B1 -> 25 | D1: 5
A2: ROM2 | B2: 10 | C2: =D2/10*B2 -> 14 | D2: 14
D3: =SUM(C1:C2) -> 39

Sheet HITUNGAN UTS (ABAIKAN) (2)
B1: JML SOAL | C1: JML POIN | D1: POIN SEIMPURNA | E1: MASUKKAN SKOR | F1: MASUKKAN NILAINYA
A2: ROM1 | B2: 15 | C2: 1 | D2: =B2*C2 -> 15 | E2: 5 | F2: UNTUK ROM2
A3: ROM2 | B3: 5 | C3: 5 | D3: =B3*C3 -> 25 | E3: 5
A4: ROM3 | B4: 5 | C4: 10 | D4: 50 | E4: 5 | F4: 14 | G4: 1
D5: NILAI | E5: =SUM(E2:E4)/SUM(D2:D4)*100 -> 16.66666667 | F5: 1 | G5: 2
F6: 7 | G6: 3
F7: 3 | G7: 4
F8: =AVERAGE(H8:H10) -> 13.33333333 | G8: 5 | H8: 14
H9: 14
H10: 12
